lending/lending_fUSD_20250819
["ID","MTS","AMOUNT","RATE_DAILY","PERIOD"]
[380280322,1755631465167,-400.0,0.00024095,30]
[380280323,1755631465245,-400.0,0.00024095,30]
[380280324,1755631465330,-1522.01,0.00024095,30]
[380280325,1755631465412,-1158.37,0.00024095,30]
[380280326,1755631465488,-584.13,0.00024095,30]
[380280327,1755631465563,-957.91,0.00024095,30]
[380280328,1755631465638,-2491.69,0.00024095,30]
[380280329,1755631465714,-400.0,0.00024095,30]
[380280330,1755631465789,-2492.12,0.00024095,30]
[380280331,1755631465864,-1980.77,0.00024095,30]
[380280332,1755631465940,-400.0,0.00024095,30]
[380280333,1755631466016,-1928.22,0.00024095,30]
[380280334,1755631466093,-553.68,0.00024095,30]
[380280335,1755631466168,-400.0,0.00024095,30]
[380280336,1755631466247,-2354.42,0.00024095,30]
[380280337,1755631466330,-1644.87,0.00024095,30]
[380280338,1755631466408,-2216.05,0.00024095,30]
[380280339,1755631466484,-2825.62,0.00024095,30]
[380280340,1755631466558,-619.98,0.00024095,30]
[380280341,1755631466636,-651.62,0.00024095,30]
[380280342,1755631466712,-3485.03,0.00024095,30]
[380280343,1755631466788,-1412.21,0.00024095,30]
[380280344,1755631466863,-1725.57,0.00024095,30]
[380280345,1755631466936,-400.0,0.00024095,30]
[380280346,1755631467011,-2140.32,0.00024095,30]
[380280347,1755631467084,-2069.46,0.00024095,30]
[380280348,1755631467161,-400.0,0.00024095,30]
[380280349,1755631467243,-400.0,0.00024095,30]
[380280350,1755631467326,-400.0,0.00024095,30]
[380280351,1755631467410,-400.0,0.00024095,30]
[380280352,1755631467492,-1586.23,0.00024095,30]
[380280353,1755631467567,-2222.5,0.00024095,30]
[380280354,1755631467644,-400.0,0.00024095,30]
[380280355,1755631467721,-2119.53,0.00024095,30]
[380280356,1755631467796,-400.0,0.00024095,30]
[380280357,1755631467870,-868.92,0.00024095,30]
[380280358,1755631467950,-547.34,0.00024095,30]
[380280359,1755631468027,-1030.88,0.00024095,30]
[380280360,1755631468105,-1811.4,0.00024095,30]
[380280361,1755631468183,-400.0,0.00024095,30]
[380280362,1755631468260,-1086.92,0.00024095,30]
[380280363,1755631468338,-400.0,0.00024095,30]
[380280364,1755631468416,-400.0,0.00024095,30]
[380280365,1755631468496,-400.0,0.00024095,30]
[380280366,1755631468576,-400.0,0.00024095,30]
[380280367,1755631468654,-451.11,0.00024095,30]
[380280368,1755631468733,-423.65,0.00024095,30]
[380280369,1755631468809,-400.0,0.00024095,30]
[380280370,1755631468890,-597.08,0.00024095,30]
[380280371,1755631468967,-1474.99,0.00024095,30]
[380280372,1755631469046,-2071.19,0.00024095,30]
[380280373,1755631469124,-400.0,0.00024095,30]
[380280374,1755631469206,-1897.14,0.00024095,30]
[380280375,1755631469285,-1986.02,0.00024095,30]
[380280376,1755631469368,-1857.48,0.00024095,30]
[380280377,1755631469448,-1653.8,0.00024095,30]
[380280378,1755631469530,-911.85,0.00024095,30]
[380280379,1755631469607,-1758.09,0.00024095,30]
[380280380,1755631469684,-1521.0,0.00024095,30]
[380280381,1755631469763,-721.88,0.00024095,30]
[380280382,1755631469840,-676.72,0.00024095,30]
[380280383,1755631469920,-2274.26,0.00024095,30]
[380280384,1755631470211,-1298.17,0.00024095,30]
[380280385,1755631470289,-400.0,0.00024095,30]
[380280386,1755631470371,-613.1,0.00024095,30]
[380280387,1755631470451,-695.86,0.00024095,30]
[380280388,1755631470746,-1491.99,0.00024095,30]
[380280389,1755631470821,-1980.26,0.00024095,30]
[380280390,1755631470895,-400.0,0.00024095,30]
[380280391,1755631470971,-400.25,0.00024095,30]
[380280392,1755631471051,-1577.29,0.00024095,30]
[380280393,1755631471128,-400.0,0.00024095,30]
[380280394,1755631471213,-400.0,0.00024095,30]
[380280395,1755631471309,-2002.7,0.00024095,30]
[380280396,1755631471386,-1266.16,0.00024095,30]
[380280397,1755631471464,-1366.49,0.00024095,30]
[380280398,1755631471538,-406.66,0.00024095,30]
[380280399,1755631471616,-508.05,0.00024095,30]
[380280400,1755631471690,-528.92,0.00024095,30]
[380280401,1755631471784,-1776.47,0.00024095,30]
[380280402,1755631471871,-2414.67,0.00024095,30]
[380280403,1755631471947,-2527.19,0.00024095,30]
[380280404,1755631472022,-2175.76,0.00024095,30]
[380280405,1755631472097,-2752.59,0.00024095,30]
[380280406,1755631472176,-400.0,0.00024095,30]
[380280407,1755631472257,-588.39,0.00024095,30]
[380280408,1755631472341,-1345.68,0.00024095,30]
[380280409,1755631472421,-824.04,0.00024095,30]
[380280410,1755631472501,-1251.07,0.00024095,30]
[380280411,1755631472578,-1948.12,0.00024095,30]
[380280412,1755631472652,-400.0,0.00024095,30]
[380280413,1755631472723,-2377.39,0.00024095,30]
[380280414,1755631472792,-2026.03,0.00024095,30]
[380280415,1755631472859,-2114.04,0.00024095,30]
[380280416,1755631472933,-400.0,0.00024095,30]
[380280417,1755631473003,-849.78,0.00024095,30]
[380280418,1755631473076,-953.13,0.00024095,30]
[380280419,1755631473153,-843.06,0.00024095,30]
[380280420,1755631473235,-728.87,0.00024095,30]
[380280421,1755631473315,-940.93,0.00024095,30]
[380280422,1755631473393,-400.0,0.00024095,30]
[380280423,1755631473471,-1905.5,0.00024095,30]
[380280424,1755631473545,-1596.52,0.00024095,30]
[380280425,1755631473623,-400.0,0.00024095,30]
[380280426,1755631473698,-400.0,0.00024095,30]
[380280427,1755631473772,-902.59,0.00024095,30]
[380280428,1755631473850,-400.0,0.00024095,30]
[380280429,1755631473929,-687.3,0.00024095,30]
[380280430,1755631474003,-2543.56,0.00024095,30]
[380280431,1755631474082,-400.0,0.00024095,30]
[380280432,1755631474161,-609.42,0.00024095,30]
[380280433,1755631474238,-1773.97,0.00024095,30]
[380280434,1755631474322,-1735.8,0.00024095,30]
[380280435,1755631474400,-1297.44,0.00024095,30]
[380280436,1755631474476,-1858.51,0.00024095,30]
[380280437,1755631474558,-805.88,0.00024095,30]
[380280438,1755631474651,-1244.43,0.00024095,30]
[380280439,1755631474728,-1784.43,0.00024095,30]
[380280440,1755631474799,-501.46,0.00024095,30]
[380280441,1755631474869,-1529.76,0.00024095,30]
[380280442,1755631474944,-672.98,0.00024095,30]
[380280443,1755631475019,-600.82,0.00024095,30]
[380280444,1755631475095,-1465.85,0.00024095,30]
[380280445,1755631475172,-1931.93,0.00024095,30]
[380280446,1755631475248,-2147.31,0.00024095,30]
[380280447,1755631475326,-2038.08,0.00024095,30]
[380280448,1755631475405,-1567.3,0.00024095,30]
[380280449,1755631475480,-1367.91,0.00024095,30]
[380280450,1755631475552,-400.0,0.00024095,30]
[380280451,1755631475624,-400.0,0.00024095,30]
[380280452,1755631475694,-400.0,0.00024095,30]
[380280453,1755631475762,-1620.7,0.00024095,30]
[380280454,1755631475831,-2163.3,0.00024095,30]
[380280455,1755631475900,-845.95,0.00024095,30]
[380280456,1755631475968,-400.0,0.00024095,30]
[380280457,1755631476035,-1692.55,0.00024095,30]
[380280458,1755631476105,-400.0,0.00024095,30]
[380280459,1755631476177,-2121.39,0.00024095,30]
[380280460,1755631476248,-1740.78,0.00024095,30]
[380280461,1755631476318,-429.43,0.00024095,30]
[380280462,1755631476392,-1828.54,0.00024095,30]
[380280463,1755631476470,-2012.79,0.00024095,30]
[380280464,1755631476543,-708.39,0.00024095,30]
[380280465,1755631476612,-2499.8,0.00024095,30]
[380280466,1755631476682,-1426.86,0.00024095,30]
[380280467,1755631476749,-664.56,0.00024095,30]
[380280468,1755631476819,-400.0,0.00024095,30]
[380280469,1755631476898,-1463.09,0.00024095,30]
[380280470,1755631476968,-1552.03,0.00024095,30]
[380280471,1755631477039,-1913.73,0.00024095,30]
[380280472,1755631477110,-400.0,0.00024095,30]
[380280473,1755631477187,-2436.61,0.00024095,30]
[380280474,1755631477262,-1392.77,0.00024095,30]
[380280475,1755631477337,-846.92,0.00024095,30]
[380280476,1755631477413,-1000.0,0.00024095,30]
[380280477,1755631477485,-1763.74,0.00024095,30]
[380280478,1755631477555,-400.0,0.00024095,30]
[380280479,1755631477624,-400.0,0.00024095,30]
[380280480,1755631477694,-744.5,0.00024095,30]
[380280481,1755631477763,-1099.58,0.00024095,30]
[380280482,1755631477832,-665.76,0.00024095,30]
[380280483,1755631477900,-400.0,0.00024095,30]
[380280484,1755631477966,-400.0,0.00024095,30]
[380280485,1755631478033,-400.0,0.00024095,30]
[380280486,1755631478103,-1281.3,0.00024095,30]
[380280487,1755631478175,-1252.4,0.00024095,30]
[380280488,1755631478249,-400.0,0.00024095,30]
[380280489,1755631478324,-3616.11,0.00024095,30]
[380280490,1755631478406,-1778.51,0.00024095,30]
[380280491,1755631478479,-407.83,0.00024095,30]
[380280492,1755631478551,-1482.09,0.00024095,30]
[380280493,1755631478621,-1414.83,0.00024095,30]
[380280494,1755631478691,-2032.19,0.00024095,30]
[380280495,1755631478758,-400.0,0.00024095,30]
[380280496,1755631478824,-1578.98,0.00024095,30]
[380280497,1755631478893,-2398.45,0.00024095,30]
[380280498,1755631478963,-766.85,0.00024095,30]
[380280499,1755631479029,-1851.5,0.00024095,30]
[380280500,1755631479101,-1329.85,0.00024095,30]
[380280501,1755631479173,-400.0,0.00024095,30]
[380280502,1755631479248,-1371.61,0.00024095,30]
[380280503,1755631479669,-1402.72,0.00024095,30]
[380280504,1755631479741,-400.0,0.00024095,30]
[380280505,1755631479811,-589.37,0.00024095,30]
[380280506,1755631479881,-1582.32,0.00024095,30]
[380280507,1755631479958,-1558.06,0.00024095,30]
[380280508,1755631480031,-901.56,0.00024095,30]
[380280509,1755631480106,-1663.17,0.00024095,30]
[380280510,1755631480184,-400.0,0.00024095,30]
[380280511,1755631480259,-1613.79,0.00024095,30]
[380280512,1755631480335,-1045.63,0.00024095,30]
[380280513,1755631480410,-749.46,0.00024095,30]
[380280514,1755631480483,-1627.15,0.00024095,30]
[380280515,1755631480554,-609.27,0.00024095,30]
[380280516,1755631480626,-435.18,0.00024095,30]
[380280517,1755631480697,-400.0,0.00024095,30]
[380280518,1755631480770,-4412.02,0.00024095,30]
[380280519,1755631480839,-2089.62,0.00024095,30]
[380280520,1755631480907,-1260.34,0.00024095,30]
[380280521,1755631480973,-1502.06,0.00024095,30]
[380280522,1755631481042,-563.93,0.00024095,30]
[380280523,1755631481111,-400.0,0.00024095,30]
[380280524,1755631481180,-6403.8,0.00024095,30]
[380280525,1755631481253,-1985.34,0.00024095,30]
[380280526,1755631481324,-1048.51,0.00024095,30]
[380280527,1755631481395,-400.0,0.00024095,30]
[380280528,1755631481466,-400.0,0.00024095,30]
[380280529,1755631481548,-1399.36,0.00024095,30]
[380280530,1755631481640,-400.0,0.00024095,30]
[380280531,1755631481716,-400.0,0.00024095,30]
[380280532,1755631481790,-400.0,0.00024095,30]
[380280533,1755631481867,-1781.2,0.00024095,30]
[380280534,1755631481940,-705.16,0.00024095,30]
[380280535,1755631482011,-1262.42,0.00024095,30]
[380280536,1755631482084,-1740.19,0.00024095,30]
[380280537,1755631482154,-681.02,0.00024095,30]
[380280538,1755631482230,-847.25,0.00024095,30]
[380280539,1755631482307,-1383.16,0.00024095,30]
[380280540,1755631482385,-2644.58,0.00024095,30]
[380280541,1755631482459,-291.55488941,0.00024095,30]
[380280542,1755631482532,-1521.72,0.00024095,30]
[380280543,1755631482605,-408.62,0.00024095,30]
[380280544,1755631482677,-1779.17,0.00024095,30]
[380280545,1755631482758,-2168.42,0.00024095,30]
[380280546,1755631482831,-400.0,0.00024095,30]
[380280547,1755631482901,-1178.75,0.00024095,30]
[380280548,1755631482974,-1810.97,0.00024095,30]
[380280549,1755631483047,-400.0,0.00024095,30]
[380280550,1755631483123,-616.31,0.00024095,30]
[380280551,1755631483199,-437.3,0.00024095,30]
[380280552,1755631483276,-400.0,0.00024095,30]
[380280553,1755631483352,-400.0,0.00024095,30]
[380280554,1755631483429,-1301.26,0.00024095,30]
[380280555,1755631483504,-1396.52,0.00024095,30]
[380280556,1755631483579,-3238.02,0.00024095,30]
[380280557,1755631483673,-661.58,0.00024095,30]
[380280558,1755631483746,-900.37,0.00024095,30]
[380280559,1755631483822,-1029.85,0.00024095,30]
[380280560,1755631483896,-524.58,0.00024095,30]
[380280561,1755631483973,-528.92,0.00024095,30]
[380280562,1755631484048,-1367.19,0.00024095,30]
[380280563,1755631484122,-400.0,0.00024095,30]
[380280564,1755631484199,-1736.94,0.00024095,30]
[380280565,1755631484278,-1444.28,0.00024095,30]
[380280566,1755631484353,-438.54,0.00024095,30]
[380280567,1755631484431,-2052.18,0.00024095,30]
[380280568,1755631484504,-1214.14,0.00024095,30]
[380280569,1755631484576,-1257.53,0.00024095,30]
[380280570,1755631484650,-400.0,0.00024095,30]
[380280571,1755631484724,-400.0,0.00024095,30]
[380280572,1755631484797,-400.0,0.00024095,30]
[380280573,1755631484870,-809.42,0.00024095,30]
[380280574,1755631484945,-617.46,0.00024095,30]
[380280575,1755631485019,-1942.42,0.00024095,30]
[380280576,1755631485095,-1699.43,0.00024095,30]
[380280577,1755631485173,-1369.92,0.00024095,30]
[380280578,1755631485255,-400.0,0.00024095,30]
[380280579,1755631485331,-1393.2,0.00024095,30]
[380280580,1755631485410,-2169.5,0.00024095,30]
[380280581,1755631485486,-823.8,0.00024095,30]
[380280582,1755631485562,-400.0,0.00024095,30]
[380280583,1755631485636,-400.0,0.00024095,30]
[380280584,1755631485711,-1784.2,0.00024095,30]
[380280585,1755631485781,-550.99,0.00024095,30]
[380280586,1755631485854,-1416.58,0.00024095,30]
[380280587,1755631485934,-400.0,0.00024095,30]
[380280588,1755631486005,-1565.79,0.00024095,30]
[380280589,1755631486081,-1403.3,0.00024095,30]
[380280590,1755631486156,-642.58,0.00024095,30]
[380280591,1755631486232,-2128.32,0.00024095,30]
[380280592,1755631486310,-8918.63,0.00024095,30]
[380280593,1755631486387,-7432.2,0.00024095,30]
[380280594,1755631486462,-1992.46,0.00024095,30]
[380280595,1755631486532,-776.51,0.00024095,30]
[380280596,1755631486604,-400.0,0.00024095,30]
[380280597,1755631486676,-646.11,0.00024095,30]
[380280598,1755631486748,-942.07,0.00024095,30]
[380280599,1755631486822,-1398.76,0.00024095,30]
[380280600,1755631486896,-1374.85,0.00024095,30]
[380280601,1755631486967,-622.04,0.00024095,30]
[380280602,1755631487039,-1438.62,0.00024095,30]
[380280603,1755631487112,-400.0,0.00024095,30]
[380280604,1755631487186,-400.0,0.00024095,30]
[380280605,1755631487277,-400.0,0.00024095,30]
[380280606,1755631487361,-436.45,0.00024095,30]
[380280607,1755631487438,-1757.25,0.00024095,30]
[380280608,1755631487509,-1258.08,0.00024095,30]
[380280609,1755631487579,-1464.38,0.00024095,30]
[380280610,1755631487652,-1449.63,0.00024369,30]
[380280611,1755631487722,-2257.43,0.00024369,30]
[380280612,1755631487791,-1569.5,0.00024369,30]
[380280613,1755631487862,-400.0,0.00024369,30]
[380280614,1755631487936,-400.0,0.00024369,30]
[380280615,1755631488009,-400.0,0.00024369,30]
[380280616,1755631488082,-1571.79,0.00024369,30]
[380280617,1755631488350,-400.0,0.00024369,30]
[380280618,1755631488429,-400.0,0.00024369,30]
[380280619,1755631488504,-1522.01,0.00024369,30]
[380280620,1755631488580,-1158.37,0.00024369,30]
[380280621,1755631488655,-584.13,0.00024369,30]
[380280622,1755631488727,-957.91,0.00024369,30]
[380280623,1755631488798,-2491.69,0.00024369,30]
[380280624,1755631488870,-400.0,0.00024369,30]
[380280625,1755631488943,-2492.12,0.00024369,30]
[380280626,1755631489014,-1980.77,0.00024369,30]
[380280627,1755631489086,-400.0,0.00024369,30]
[380280628,1755631489163,-1928.22,0.00024369,30]
[380280629,1755631489238,-553.68,0.00024369,30]
[380280630,1755631489315,-400.0,0.00024369,30]
[380280631,1755631489392,-2354.42,0.00024369,30]
[380280632,1755631489467,-1644.87,0.00024369,30]
[380280633,1755631489539,-2216.05,0.00024369,30]
[380280634,1755631489612,-2825.62,0.00024369,30]
[380280635,1755631489684,-619.98,0.00024369,30]
[380280636,1755631489756,-651.62,0.00024369,30]
[380280637,1755631489829,-3485.03,0.00024369,30]
[380280638,1755631489902,-1412.21,0.00024369,30]
[380280639,1755631489980,-1725.57,0.00024369,30]
[380280640,1755631490056,-2140.32,0.00024369,30]
[380280641,1755631490129,-400.0,0.00024369,30]
[380280642,1755631490203,-2069.46,0.00024369,30]
[380280643,1755631490274,-400.0,0.00024369,30]
[380280644,1755631490346,-400.0,0.00024369,30]
[380280645,1755631490422,-400.0,0.00024369,30]
[380280646,1755631490498,-400.0,0.00024369,30]
[380280647,1755631490571,-1586.23,0.00024369,30]
[380280648,1755631490646,-2222.5,0.00024369,30]
[380280649,1755631490720,-400.0,0.00024369,30]
[380280650,1755631490796,-2119.53,0.00024369,30]
[380280651,1755631490869,-400.0,0.00024369,30]
[380280652,1755631490944,-868.92,0.00024369,30]
[380280653,1755631491020,-547.34,0.00024369,30]
[380280654,1755631491100,-1811.4,0.00024369,30]
[380280655,1755631491184,-1086.92,0.00024369,30]
[380280656,1755631491268,-1030.88,0.00024369,30]
[380280657,1755631491351,-400.0,0.00024369,30]
[380280658,1755631491429,-400.0,0.00024369,30]
[380280659,1755631491503,-400.0,0.00024369,30]
[380280660,1755631491575,-400.0,0.00024369,30]
[380280661,1755631491647,-400.0,0.00024369,30]
[380280662,1755631491720,-451.11,0.00024369,30]
[380280663,1755631491791,-423.65,0.00024369,30]
[380280664,1755631491860,-400.0,0.00024369,30]
[380280665,1755631491930,-597.08,0.00024369,30]
[380280666,1755631492000,-1474.99,0.00024369,30]
[380280667,1755631492071,-2071.19,0.00024369,30]
[380280668,1755631492139,-182.24773867,0.00024369,30]
[380280669,1755631492210,-1897.14,0.00024369,30]
[380280670,1755631492279,-1986.02,0.00024369,30]
[380280671,1755631492361,-1857.48,0.00024369,30]
[380280672,1755631492436,-1653.8,0.00024369,30]
[380280673,1755631492509,-911.85,0.00024369,30]
[380280674,1755631492578,-1758.09,0.00024369,30]
[380280675,1755631492649,-1521.0,0.00024369,30]
[380280676,1755631492721,-721.88,0.00024369,30]
[380280677,1755631492788,-676.72,0.00024369,30]
[380280678,1755631492855,-2274.26,0.00024369,30]
[380280679,1755631492923,-1298.17,0.00024369,30]
[380280680,1755631492990,-613.1,0.00024369,30]
[380280681,1755631493059,-695.86,0.00024369,30]
[380280682,1755631493128,-1491.99,0.00024369,30]
[380280683,1755631493197,-1980.26,0.00024369,30]
[380280684,1755631493269,-400.0,0.00024369,30]
[380280685,1755631493341,-400.25,0.00024369,30]
[380280686,1755631493414,-1577.29,0.00024369,30]
[380280687,1755631493486,-400.0,0.00024369,30]
[380280688,1755631493559,-400.0,0.00024369,30]
[380280689,1755631493629,-2002.7,0.00024369,30]
[380280690,1755631493704,-1266.16,0.00024369,30]
[380280691,1755631493784,-1366.49,0.00024369,30]
[380280692,1755631493858,-406.66,0.00024369,30]
[380280693,1755631493931,-508.05,0.00024369,30]
[380280694,1755631494005,-528.92,0.00024369,30]
[380280695,1755631494078,-1776.47,0.00024369,30]
[380280696,1755631494149,-2414.67,0.00024369,30]
[380280697,1755631494225,-2527.19,0.00024369,30]
[380280698,1755631494302,-2175.76,0.00024369,30]
[380280699,1755631494382,-2752.59,0.00024369,30]
[380280700,1755631494462,-400.0,0.00024369,30]
[380280701,1755631494539,-588.39,0.00024369,30]
[380280702,1755631494613,-1345.68,0.00024369,30]
[380280703,1755631494687,-824.04,0.00024369,30]
[380280704,1755631494760,-1251.07,0.00024369,30]
[380280705,1755631494834,-1948.12,0.00024369,30]
[380280706,1755631494907,-2377.39,0.00024369,30]
[380280707,1755631494982,-400.0,0.00024369,30]
[380280708,1755631495059,-2026.03,0.00024369,30]
[380280709,1755631495138,-2114.04,0.00024369,30]
[380280710,1755631495214,-400.0,0.00024369,30]
[380280711,1755631495297,-849.78,0.00024369,30]
[380280712,1755631495376,-953.13,0.00024369,30]
[380280713,1755631495454,-843.06,0.00024369,30]
[380280714,1755631495530,-728.87,0.00024369,30]
[380280715,1755631495603,-940.93,0.00024369,30]
[380280716,1755631495679,-400.0,0.00024369,30]
[380280717,1755631495754,-1905.5,0.00024369,30]
[380280718,1755631495835,-1596.52,0.00024369,30]
[380280719,1755631495914,-269.20365978,0.00024369,30]
[380280720,1755631495994,-400.0,0.00024369,30]
[380280721,1755631496076,-902.59,0.00024369,30]
[380280722,1755631496158,-400.0,0.00024369,30]
[380280723,1755631496243,-687.3,0.00024369,30]
[380280724,1755631496327,-2543.56,0.00024369,30]
[380280725,1755631496405,-400.0,0.00024369,30]
[380280726,1755631496482,-609.42,0.00024369,30]
[380280727,1755631496771,-1773.97,0.00024369,30]
[380280728,1755631496843,-1735.8,0.00024369,30]
[380280729,1755631496912,-1297.44,0.00024369,30]
[380280730,1755631496982,-1858.51,0.00024369,30]
[380280731,1755631497052,-805.88,0.00024369,30]
[380280732,1755631497432,-1244.43,0.00024369,30]
[380280733,1755631497514,-1784.43,0.00024369,30]
[380280734,1755631497589,-501.46,0.00024369,30]
[380280735,1755631497663,-1529.76,0.00024369,30]
[380280736,1755631497738,-672.98,0.00024369,30]
[380280737,1755631497809,-600.82,0.00024369,30]
[380280738,1755631497881,-1465.85,0.00024369,30]
[380280739,1755631497958,-1931.93,0.00024369,30]
[380280740,1755631498029,-2147.31,0.00024369,30]
[380280741,1755631498102,-2038.08,0.00024369,30]
[380280742,1755631498175,-1567.3,0.00024369,30]
[380280743,1755631498255,-1367.91,0.00024369,30]
[380280744,1755631498332,-400.0,0.00024369,30]
[380280745,1755631498424,-329.01601556,0.00024369,30]
[380280746,1755631498498,-400.0,0.00024369,30]
[380280747,1755631498571,-1620.7,0.00024369,30]
[380280748,1755631498644,-2163.3,0.00024369,30]
[380280749,1755631498714,-845.95,0.00024369,30]
[380280750,1755631498787,-400.0,0.00024369,30]
[380280751,1755631498859,-1692.55,0.00024369,30]
[380280752,1755631498932,-400.0,0.00024369,30]
[380280753,1755631499003,-2121.39,0.00024369,30]
[380280754,1755631499075,-1740.78,0.00024369,30]
[380280755,1755631499152,-429.43,0.00024369,30]
[380280756,1755631499234,-1828.54,0.00024369,30]
[380280757,1755631499319,-2012.79,0.00024369,30]
[380280758,1755631499402,-708.39,0.00024369,30]
[380280759,1755631499484,-2499.8,0.00024369,30]
[380280760,1755631499558,-1426.86,0.00024369,30]
[380280761,1755631499629,-664.56,0.00024369,30]
[380280762,1755631499700,-365.18224513,0.00024369,30]
[380280763,1755631499772,-1463.09,0.00024369,30]
[380280764,1755631499841,-1913.73,0.00024369,30]
[380280765,1755631499909,-1552.03,0.00024369,30]
[380280766,1755631499977,-400.0,0.00024369,30]
[380280767,1755631500054,-2436.61,0.00024369,30]
[380280768,1755631500138,-1392.77,0.00024369,30]
[380280769,1755631500229,-846.92,0.00024369,30]
[380280770,1755631500314,-1000.0,0.00024369,30]
[380280771,1755631500395,-1763.74,0.00024369,30]
[380280772,1755631500471,-400.0,0.00024369,30]
[380280773,1755631500548,-400.0,0.00024369,30]
[380280774,1755631500623,-744.5,0.00024369,30]
[380280775,1755631500712,-1099.58,0.00024369,30]
[380280776,1755631500791,-665.76,0.00024369,30]
[380280777,1755631500868,-400.0,0.00024369,30]
[380280778,1755631500946,-400.0,0.00024369,30]
[380280779,1755631501017,-1281.3,0.00024369,30]
[380280780,1755631501096,-400.0,0.00024369,30]
[380280781,1755631501182,-1252.4,0.00024369,30]
[380280782,1755631501264,-400.0,0.00024369,30]
[380280783,1755631501347,-3616.11,0.00024369,30]
[380280784,1755631501435,-1778.51,0.00024369,30]
[380280785,1755631501515,-407.83,0.00024369,30]
[380280786,1755631501592,-1482.09,0.00024369,30]
[380280787,1755631501674,-1414.83,0.00024369,30]
[380280788,1755631501752,-2032.19,0.00024369,30]
[380280789,1755631501826,-400.0,0.00024369,30]
[380280790,1755631501901,-1578.98,0.00024369,30]
[380280791,1755631501974,-2398.45,0.00024369,30]
[380280792,1755631502047,-766.85,0.00024369,30]
[380280793,1755631502120,-1851.5,0.00024369,30]
[380280794,1755631502202,-1329.85,0.00024369,30]
[380280795,1755631502277,-400.0,0.00024369,30]
[380280796,1755631502353,-1371.61,0.00024369,30]
[380280797,1755631502429,-1402.72,0.00024369,30]
[380280798,1755631502504,-400.0,0.00024369,30]
[380280799,1755631502578,-589.37,0.00024369,30]
[380280800,1755631502651,-1582.32,0.00024369,30]
[380280801,1755631502725,-1558.06,0.00024369,30]
[380280802,1755631502800,-901.56,0.00024369,30]
[380280803,1755631502875,-1663.17,0.00024369,30]
[380280804,1755631502952,-400.0,0.00024369,30]
[380280805,1755631503025,-1613.79,0.00024369,30]
[380280806,1755631503119,-1045.63,0.00024369,30]
[380280807,1755631503209,-749.46,0.00024369,30]
[380280808,1755631503306,-1627.15,0.00024369,30]
[380280809,1755631503392,-609.27,0.00024369,30]
[380280810,1755631503479,-435.18,0.00024369,30]
[380280811,1755631503567,-400.0,0.00024369,30]
[380280812,1755631503659,-4412.02,0.00024369,30]
[380280813,1755631503747,-2089.62,0.00024369,30]
[380280814,1755631503835,-1260.34,0.00024369,30]
[380280815,1755631503925,-1502.06,0.00024369,30]
[380280816,1755631504014,-563.93,0.00024369,30]
[380280817,1755631504099,-400.0,0.00024369,30]
[380280818,1755631504186,-6403.8,0.00024369,30]
[380280819,1755631504276,-1985.34,0.00024369,30]
[380280820,1755631504361,-1048.51,0.00024369,30]
[380280821,1755631504468,-400.0,0.00024369,30]